bitfinex/quotes_BTCUSD_20260117
["timestamp","ask_amount","ask_price","bid_price","bid_amount"]
[1768668295856,0.01048833,95344.0,95339.0,0.05244436]
[1768668295993,0.05917456,95344.0,95339.0,0.05244412]
[1768668296405,0.01048844,95343.0,95339.0,0.05244412]
[1768668296613,0.05917456,95344.0,95340.0,0.06293259]
[1768668296614,0.00673274,95344.0,95340.0,0.06293259]
[1768668297044,0.05917442,95344.0,95340.0,0.01048877]
[1768668297715,0.06293082,95343.0,95340.0,0.01048877]
[1768668298018,0.06293082,95343.0,95338.0,0.06293389]
[1768668298019,0.01048855,95342.0,95338.0,0.01048899]
[1768668298223,0.01048855,95342.0,95338.0,0.06293394]
[1768668299177,0.01048866,95341.0,95337.0,0.0104891]
[1768668299677,0.06293142,95342.0,95337.0,0.0104891]
[1768668299678,0.01048855,95342.0,95338.0,0.01048899]
[1768668299985,0.01048844,95343.0,95339.0,0.01048888]
[1768668300316,0.01048855,95342.0,95339.0,0.05244442]
[1768668301202,0.01048855,95342.0,95339.0,0.0629333]
[1768668301522,0.0629288,95346.0,95342.0,0.01048855]
[1768668301782,0.01048811,95346.0,95342.0,0.01048855]
[1768668301914,0.01048811,95346.0,95342.0,0.06293122]
[1768668302527,0.010488,95347.0,95343.0,0.01048844]
[1768668303362,0.010488,95347.0,95342.0,0.06293107]
[1768668303516,0.01048855,95342.0,95337.0,0.0104891]
[1768668304541,0.01048866,95341.0,95337.0,0.0104891]
[1768668304882,0.01048866,95341.0,95337.0,0.06293443]
[1768668305517,0.01048899,95338.0,95335.0,0.03772017]
[1768668305722,0.01032125,95338.0,95335.0,0.00021786]
[1768668306029,0.00840513,95338.0,95335.0,0.00021786]
[1768668306168,0.00840513,95338.0,95335.0,0.01070718]
[1768668306825,0.00840513,95338.0,95335.0,0.06315377]
[1768668307366,0.00840513,95338.0,95335.0,0.10071554]
[1768668307839,0.00840513,95338.0,95335.0,0.06315377]
[1768668308277,0.01048877,95340.0,95336.0,0.062935]
[1768668308714,0.01048888,95339.0,95336.0,0.01048921]
[1768668310458,0.06293334,95339.0,95336.0,0.01048921]
[1768668311699,0.06293204,95341.0,95337.0,0.0104891]
[1768668311923,0.01048877,95340.0,95339.0,0.02829464]
[1768668312934,0.06293265,95340.0,95339.0,0.02829464]
[1768668313048,0.01048866,95341.0,95339.0,0.02829464]
[1768668313477,0.01048855,95342.0,95339.0,0.02829464]
[1768668313683,0.01048855,95342.0,95339.0,0.03878352]
[1768668314877,0.05244334,95341.0,95339.0,0.02829464]
[1768668315491,0.01048855,95342.0,95339.0,0.02829464]
[1768668315714,0.01048855,95342.0,95340.0,0.02829464]
[1768668315919,0.06293134,95342.0,95340.0,0.02829464]
[1768668317818,0.05244333,95341.0,95340.0,0.02829464]
[1768668318349,0.06293199,95341.0,95338.0,0.04805076]
[1768668318978,0.01048855,95342.0,95339.0,0.01048888]
[1768668319388,0.01048855,95342.0,95339.0,0.04805065]
[1768668319581,0.06293172,95342.0,95339.0,0.03756177]
[1768668319771,0.05244333,95341.0,95339.0,0.03756177]
[1768668320923,0.01048877,95340.0,95337.0,0.0104891]
[1768668321651,0.01048877,95340.0,95335.0,0.04826895]
[1768668321652,0.01048888,95339.0,95335.0,0.04826895]
[1768668321879,0.01048888,95339.0,95335.0,0.0631537]
[1768668322551,0.01048899,95338.0,95335.0,0.01070718]
[1768668322989,0.01048899,95338.0,95335.0,0.06315371]
[1768668323409,0.01048877,95340.0,95336.0,0.01048921]
[1768668323591,0.01048877,95340.0,95336.0,0.06293513]
[1768668324586,0.0629354,95336.0,95331.0,0.05244841]
[1768668324734,0.0629354,95336.0,95333.0,0.01048954]
[1768668324735,0.01048921,95336.0,95333.0,0.01048954]
[1768668325135,0.01048899,95338.0,95333.0,0.01048954]
[1768668325343,0.01048899,95338.0,95336.0,0.02830148]
[1768668325628,0.01048976,95331.0,95326.0,0.01064871]
[1768668325823,0.01048976,95331.0,95326.0,0.0001584]
[1768668325824,0.01048998,95329.0,95326.0,0.0001584]
[1768668326839,0.06294002,95329.0,95326.0,0.0001584]
[1768668327035,0.05245054,95328.0,95326.0,0.0001584]
[1768668327235,0.01048998,95329.0,95326.0,0.0001584]
[1768668327441,0.06293993,95329.0,95326.0,0.0001584]
[1768668327622,0.01048987,95330.0,95327.0,0.0104902]
[1768668329268,0.01048965,95332.0,95328.0,0.01049009]
[1768668330340,0.01048976,95331.0,95328.0,0.01049009]
[1768668330772,0.06293876,95331.0,95328.0,0.01049009]
[1768668331621,0.01048976,95331.0,95328.0,0.01049009]
[1768668331840,0.01048987,95330.0,95327.0,0.0104902]
[1768668333881,0.01048965,95332.0,95328.0,0.01049009]
[1768668334018,0.60145015,95332.0,95328.0,0.01049009]
[1768668334438,0.5909605,95332.0,95329.0,0.06293972]
[1768668335095,0.01048954,95333.0,95329.0,0.06293972]
[1768668335892,0.01048954,95333.0,95329.0,0.01048998]
[1768668336104,0.01048965,95332.0,95329.0,0.01048998]
[1768668337086,0.06293806,95332.0,95329.0,0.01048998]
[1768668337492,0.06284749,95332.0,95329.0,0.01048998]
[1768668337757,0.06284749,95332.0,95328.0,0.01049009]
[1768668338350,0.01048976,95331.0,95328.0,0.01049009]
[1768668338527,0.06293868,95331.0,95327.0,0.0104902]
[1768668338731,0.01048976,95331.0,95327.0,0.06294115]
[1768668338932,0.01048976,95331.0,95327.0,0.0104902]
[1768668340036,0.01048976,95331.0,95328.0,0.01049009]
[1768668340249,0.01048976,95331.0,95327.0,0.06294086]
[1768668340250,0.01048987,95330.0,95327.0,0.0104902]
[1768668340447,0.01039908,95332.0,95328.0,0.01049009]
[1768668340653,0.01048954,95333.0,95330.0,0.01048987]
[1768668340847,0.6014496,95337.0,95331.0,0.01048976]
[1768668341051,0.05244707,95336.0,95331.0,0.06293832]
[1768668341247,0.0104902,95340.0,95335.0,0.01048932]
[1768668341570,0.05244669,95335.0,95329.0,0.0629399]
[1768668341752,0.05244669,95335.0,95330.0,0.05244934]
[1768668341954,0.01048921,95336.0,95331.0,0.06293851]
[1768668342135,0.06293535,95336.0,95331.0,0.06293851]
[1768668342336,0.01048932,95335.0,95332.0,0.01048965]
[1768668343375,0.06293605,95335.0,95331.0,0.01048976]
[1768668343583,0.01048943,95334.0,95330.0,0.01048987]
[1768668343760,0.01048954,95333.0,95330.0,0.01048987]
[1768668344656,0.01048943,95334.0,95330.0,0.06293906]
[1768668345107,0.01048943,95334.0,95331.0,0.01048976]
[1768668346294,0.01048932,95335.0,95332.0,0.01048965]
[1768668348225,0.06293621,95335.0,95331.0,0.01048976]
[1768668348630,0.06293675,95334.0,95331.0,0.01048976]
[1768668349806,0.01048943,95334.0,95331.0,0.01048976]
[1768668352409,0.01048954,95333.0,95329.0,0.01048998]
[1768668352621,0.01048954,95333.0,95329.0,0.06293989]
[1768668352828,0.01048954,95333.0,95330.0,0.01048987]
[1768668355441,0.01048954,95333.0,95330.0,0.01029359]
[1768668356224,0.01048943,95334.0,95330.0,0.01029359]
[1768668357014,0.01048943,95334.0,95328.0,0.17956947]
[1768668357015,0.02097842,95343.0,95339.0,0.05244418]
[1768668357258,0.01048998,95343.0,95340.0,0.01048877]
[1768668357425,0.010488,95347.0,95343.0,0.06293067]
[1768668357833,0.04195979,95347.0,95343.0,0.06293067]
[1768668358196,0.04195979,95347.0,95343.0,0.01048844]
[1768668358585,0.03147179,95347.0,95344.0,0.01048833]
[1768668358813,0.01048778,95349.0,95346.0,0.01048811]
[1768668359597,0.01048778,95349.0,95340.0,0.01048877]
[1768668359808,0.01048833,95344.0,95341.0,0.01048866]
[1768668360014,0.01048844,95343.0,95340.0,0.01048877]
[1768668360646,0.06293068,95343.0,95340.0,0.01048877]
[1768668360859,0.01048855,95342.0,95337.0,0.0104891]
[1768668361064,0.01048877,95340.0,95335.0,0.01048932]
[1768668361284,0.06293313,95340.0,95335.0,0.01048932]
[1768668361494,0.01048844,95343.0,95340.0,0.01048877]
[1768668362550,0.03147063,95345.0,95341.0,0.01048866]
[1768668363565,0.03147063,95345.0,95344.0,0.05244168]
[1768668363790,0.01048778,95349.0,95345.0,0.01048822]
[1768668363932,0.01048778,95349.0,95345.0,0.00557182]
[1768668364131,0.03147063,95347.0,95345.0,0.05801281]
[1768668364333,0.03147063,95347.0,95345.0,0.04981889]
[1768668364767,0.03147063,95347.0,95346.0,0.05244058]
[1768668365120,0.01048745,95352.0,95348.0,0.06292693]
[1768668365323,0.03147063,95352.0,95349.0,0.01048778]
[1768668365775,0.06292388,95354.0,95349.0,0.01048778]
[1768668365979,0.03147057,95353.0,95349.0,0.01048778]
[1768668366206,0.09439475,95353.0,95349.0,0.01048778]
[1768668366416,0.01048745,95352.0,95349.0,0.01048778]
[1768668366662,0.01048745,95352.0,95343.0,0.20976748]
[1768668366663,0.57079884,95343.0,95327.0,0.03774485]
[1768668366921,0.01048998,95329.0,95322.0,0.01049075]
[1768668367135,0.01049042,95325.0,95323.0,0.12712]
[1768668367516,0.01049075,95322.0,95319.0,0.00051694]
[1768668367866,0.05245433,95321.0,95320.0,0.12712]
[1768668368269,0.05245488,95320.0,95319.0,0.00051694]
[1768668368474,0.05245488,95320.0,95319.0,0.12763694]
[1768668368683,9.412e-05,95320.0,95319.0,0.12763694]
[1768668368891,0.052549,95320.0,95319.0,0.12763694]
[1768668369303,9.412e-05,95320.0,95319.0,0.12763694]
[1768668370814,9.412e-05,95320.0,95316.0,0.01064981]
[1768668371027,9.412e-05,95320.0,95319.0,0.12712]
[1768668372714,0.052549,95320.0,95319.0,0.12712]
[1768668373924,0.052549,95320.0,95316.0,0.0001584]
[1768668374127,0.052549,95320.0,95312.0,0.12712]
[1768668374128,0.6337485,95315.0,95312.0,0.12712]
[1768668374328,0.58129036,95315.0,95312.0,0.12712]
[1768668374591,0.57079884,95315.0,95312.0,0.19007088]
[1768668374729,0.57079884,95315.0,95312.0,0.13761185]
[1768668375989,0.57079884,95315.0,95312.0,0.19007064]
[1768668376196,0.0104913,95317.0,95313.0,0.01049174]
[1768668376390,0.58129014,95317.0,95314.0,0.01049163]
[1768668376771,0.57079884,95317.0,95315.0,0.05245764]
[1768668377262,0.57079884,95317.0,95314.0,0.01049163]
[1768668377695,0.57072072,95317.0,95314.0,0.01049163]
[1768668378727,0.57072072,95317.0,95316.0,0.05245709]
[1768668380193,0.20980031,95329.0,95316.0,0.05245709]
[1768668380194,0.0104902,95327.0,95320.0,0.01049097]
[1768668380405,0.0104902,95327.0,95323.0,0.01049064]
[1768668380613,0.01049009,95328.0,95324.0,0.01049053]
[1768668381019,0.0104902,95327.0,95323.0,0.01049064]
[1768668381801,0.01049009,95328.0,95324.0,0.01049053]
[1768668382839,0.0104902,95327.0,95323.0,0.01049064]
[1768668383445,0.0104902,95327.0,95324.0,0.02260319]
[1768668383640,0.0104902,95327.0,95325.0,0.02260319]
[1768668383893,0.0104902,95327.0,95326.0,0.02260319]
[1768668384266,0.02098095,95328.0,95326.0,0.02260319]
[1768668384441,0.02098095,95328.0,95327.0,0.02260319]
[1768668384646,0.02098095,95328.0,95327.0,0.00477304]
[1768668384984,0.01049086,95328.0,95327.0,0.00477304]
[1768668386697,0.05244833,95332.0,95328.0,0.01049009]
[1768668386698,0.01048965,95332.0,95328.0,0.01049009]
[1768668387034,0.01048954,95333.0,95328.0,0.01049009]
[1768668387035,0.0209804,95333.0,95330.0,0.01048987]
[1768668387229,0.01049086,95333.0,95330.0,0.01048987]
[1768668388698,0.01048943,95334.0,95330.0,0.01048987]
[1768668388968,0.01048965,95332.0,95327.0,0.61015383]
[1768668389385,0.01048965,95332.0,95328.0,0.01049009]
[1768668389588,0.06293859,95331.0,95327.0,0.59966363]
[1768668390256,0.06293859,95331.0,95327.0,0.61015383]
[1768668390257,0.01048976,95331.0,95327.0,0.61015383]
[1768668390918,0.01048987,95330.0,95327.0,0.61015383]
[1768668391352,0.01048987,95330.0,95327.0,0.59966363]
[1768668391828,0.01048987,95330.0,95326.0,0.01049031]
[1768668391829,0.06293926,95330.0,95326.0,0.01049031]
[1768668392286,0.01048987,95330.0,95326.0,0.01049031]
[1768668392964,0.01048998,95329.0,95326.0,0.01049031]
[1768668393769,0.01049009,95328.0,95324.0,0.6573112]
[1768668393970,0.01049009,95328.0,95324.0,0.60485852]
[1768668394150,0.01049009,95328.0,95324.0,0.59436799]
[1768668394379,0.01049009,95328.0,95325.0,0.01049042]
[1768668395127,0.01049009,95328.0,95325.0,0.60485841]
[1768668395336,0.01048998,95329.0,95326.0,0.01049031]
[1768668395949,0.01048987,95330.0,95327.0,0.0104902]
[1768668396149,0.01048976,95331.0,95327.0,0.06294121]
[1768668396352,0.01048976,95331.0,95328.0,0.01049009]
[1768668396762,0.01048976,95331.0,95329.0,0.02264303]
[1768668396966,0.01048976,95331.0,95330.0,0.02264303]
[1768668397172,0.01048976,95331.0,95328.0,0.01049009]
[1768668397173,0.01048998,95329.0,95325.0,0.59436799]
[1768668397416,0.01048998,95329.0,95325.0,0.59432271]
[1768668398076,0.01048998,95329.0,95326.0,0.6048583]
[1768668398274,0.01048998,95329.0,95326.0,0.60481302]
[1768668398826,0.01048998,95329.0,95326.0,0.60476774]
[1768668399173,0.01048976,95331.0,95327.0,0.06294119]
[1768668400757,0.01048987,95330.0,95326.0,0.59436799]
[1768668400968,0.01048998,95329.0,95326.0,0.59436799]
[1768668401149,0.01048998,95329.0,95326.0,0.59432272]
[1768668401527,0.01048998,95329.0,95325.0,0.06294248]
[1768668401932,0.01048998,95329.0,95326.0,0.06294182]
[1768668403975,0.01048987,95330.0,95327.0,0.0104902]
[1768668404381,0.01048987,95330.0,95327.0,0.06294121]
[1768668404595,0.01048954,95333.0,95327.0,0.06294121]
[1768668404596,0.06293735,95333.0,95329.0,0.01048998]
[1768668404846,0.06293735,95333.0,95329.0,0.01044471]
[1768668405093,0.01048954,95333.0,95329.0,0.06289457]
[1768668405326,0.01048954,95333.0,95329.0,0.01044471]
[1768668405327,0.06293731,95333.0,95329.0,0.01044471]
[1768668405527,0.01048954,95333.0,95329.0,0.06284935]
[1768668405733,0.01048954,95333.0,95329.0,0.06280408]
[1768668407254,0.01048954,95333.0,95330.0,0.01048987]
[1768668407480,0.01048954,95333.0,95330.0,0.06293915]
[1768668409297,0.01049086,95334.0,95331.0,0.03313614]
[1768668409505,0.01049086,95334.0,95330.0,0.01048987]
[1768668409506,0.02098029,95334.0,95332.0,0.02264638]
[1768668409721,0.07342747,95334.0,95333.0,0.02264638]
[1768668410797,0.06293742,95333.0,95330.0,0.0387983]
[1768668411011,0.06293742,95333.0,95331.0,0.02264673]
[1768668411223,0.06293742,95333.0,95332.0,0.02264673]
[1768668411440,0.01048954,95333.0,95332.0,0.02264673]
[1768668411893,0.06293727,95333.0,95332.0,0.02264673]
[1768668412148,0.01048954,95333.0,95332.0,0.02264673]
[1768668412368,0.01048954,95333.0,95332.0,0.02260146]
[1768668413429,0.05296311,95336.0,95332.0,0.02260146]
[1768668413644,0.05244676,95335.0,95331.0,0.01048976]
[1768668414264,0.01048943,95334.0,95331.0,0.01048976]
[1768668415526,0.01048965,95332.0,95329.0,0.09124828]
[1768668415745,0.06293667,95334.0,95329.0,0.09124828]
[1768668415945,0.01048954,95333.0,95330.0,0.01048987]
[1768668416685,0.01048965,95332.0,95329.0,0.02830843]
[1768668417496,0.06293801,95332.0,95329.0,0.02830843]
[1768668418911,0.06293801,95332.0,95329.0,0.02826316]
[1768668420173,0.01048965,95332.0,95329.0,0.03875314]
[1768668420404,0.06293832,95332.0,95329.0,0.02826316]
[1768668422067,0.06293832,95332.0,95325.0,0.05245196]
[1768668422068,0.0104902,95327.0,95324.0,0.01049053]
[1768668422272,0.0104902,95327.0,95320.0,0.01063276]
[1768668422273,0.05245309,95324.0,95321.0,0.03773839]
[1768668422590,0.05945085,95324.0,95320.0,0.00014179]
[1768668422960,0.01049064,95323.0,95320.0,0.00014179]
[1768668424466,0.01049064,95323.0,95321.0,0.02264843]
[1768668424677,0.06294392,95323.0,95322.0,0.02264843]
[1768668425662,0.06189695,95326.0,95322.0,0.02264843]
[1768668425876,0.01049053,95324.0,95323.0,0.02264843]
[1768668426273,0.06294374,95324.0,95323.0,0.02264843]
[1768668427887,0.01049042,95325.0,95323.0,0.02264843]
[1768668428088,0.01049042,95325.0,95324.0,0.02264843]
[1768668433386,0.06294255,95325.0,95324.0,0.02264843]
[1768668434009,0.01049042,95325.0,95324.0,0.02264843]
[1768668434408,0.00944514,95326.0,95324.0,0.02264843]
[1768668434529,0.00944514,95326.0,95325.0,0.02264843]
[1768668435505,0.06189672,95326.0,95325.0,0.02264843]
[1768668435676,0.05245088,95328.0,95325.0,0.02264843]
[1768668435879,0.05245088,95328.0,95326.0,0.02264843]
[1768668435880,0.0104902,95327.0,95326.0,0.02264843]
[1768668436255,0.05996109,95336.0,95328.0,0.01049009]
[1768668436484,0.05244769,95334.0,95329.0,0.02264843]
[1768668436639,0.05244769,95334.0,95330.0,0.02260316]
[1768668436841,0.06293598,95335.0,95329.0,0.06293987]
[1768668437091,0.0001584,95340.0,95337.0,0.0104891]
[1768668437292,0.0001584,95340.0,95336.0,0.01048921]
[1768668437293,0.06293337,95339.0,95336.0,0.01048921]
[1768668437501,0.01048899,95338.0,95335.0,0.01048932]
[1768668438062,0.06293419,95338.0,95334.0,0.01048943]
[1768668438271,0.06293419,95338.0,95330.0,0.01048987]
[1768668438272,0.01048943,95334.0,95330.0,0.01048987]
[1768668438489,0.01048943,95334.0,95328.0,0.01049009]
[1768668438490,0.01048965,95332.0,95328.0,0.01049009]
[1768668439182,0.01048976,95331.0,95328.0,0.01049009]
[1768668439684,0.06293863,95331.0,95328.0,0.01049009]
[1768668440835,0.01048976,95331.0,95328.0,0.01049009]
[1768668441226,0.06293883,95331.0,95327.0,0.1376102]
[1768668441429,0.01048976,95331.0,95327.0,0.1376102]
[1768668441828,0.01048976,95331.0,95327.0,0.19006115]
[1768668442033,0.01048965,95332.0,95329.0,0.01048998]
[1768668442861,0.01048954,95333.0,95329.0,0.01048998]
[1768668443070,0.01048954,95333.0,95329.0,0.06293984]
[1768668443487,0.01048943,95334.0,95331.0,0.01048976]
[1768668443697,0.01048899,95338.0,95331.0,0.01048976]
[1768668443894,0.01048899,95338.0,95333.0,0.05244729]
[1768668444104,0.01048899,95338.0,95331.0,0.06293845]
[1768668444105,0.01048899,95338.0,95334.0,0.05244704]
[1768668444308,0.01048899,95338.0,95333.0,0.05244764]
[1768668444867,0.01048899,95338.0,95334.0,0.05244712]
[1768668445361,0.01048899,95338.0,95334.0,0.06293655]
[1768668445590,0.02421212,95338.0,95331.0,0.01048976]
[1768668445802,0.0001584,95340.0,95325.0,0.05245211]
[1768668445803,0.08325276,95332.0,95325.0,0.05245211]
[1768668446038,0.01048998,95329.0,95326.0,0.01049031]
[1768668446245,0.01048998,95329.0,95325.0,0.01049042]
[1768668446872,0.01048987,95330.0,95326.0,0.01049031]
[1768668447292,0.01048976,95331.0,95327.0,0.0104902]
[1768668448154,0.01048976,95331.0,95327.0,0.06294114]
[1768668448403,0.01048976,95331.0,95328.0,0.01049009]
[1768668448847,0.01048976,95331.0,95327.0,0.0104902]
[1768668449578,0.06293865,95331.0,95327.0,0.0104902]
[1768668449792,0.01048987,95330.0,95327.0,0.0104902]
[1768668450046,0.0104902,95327.0,95322.0,0.05245378]
[1768668450292,0.0104902,95327.0,95323.0,0.05245315]
[1768668450564,0.01049009,95328.0,95324.0,0.06294313]
[1768668451927,0.01049009,95328.0,95325.0,0.01049042]
[1768668452579,0.01048998,95329.0,95325.0,0.06294247]
[1768668452762,0.01048987,95330.0,95326.0,0.06294172]
[1768668452962,0.01048976,95331.0,95328.0,0.01049009]
[1768668453180,0.01048932,95335.0,95332.0,0.01048965]
[1768668453392,0.01048932,95335.0,95332.0,0.01044438]
[1768668454057,0.0001584,95340.0,95335.0,0.01048932]
[1768668454263,0.01064717,95340.0,95335.0,0.01048932]
[1768668454710,0.0001584,95340.0,95337.0,0.0104891]
[1768668454930,0.0001584,95340.0,95337.0,0.06288894]
[1768668455577,0.0001584,95340.0,95337.0,0.01044383]
[1768668455784,0.0001584,95340.0,95339.0,0.05244443]
[1768668456285,0.0001584,95340.0,95338.0,0.05244475]
[1768668456495,0.0001584,95340.0,95337.0,0.01044383]
[1768668456713,0.0001584,95340.0,95338.0,0.05244477]
[1768668456929,0.0001584,95340.0,95337.0,0.01044383]
[1768668457157,0.0001584,95340.0,95338.0,0.05244486]
[1768668457603,0.0001584,95340.0,95336.0,0.01048921]
[1768668457818,0.01048888,95339.0,95335.0,0.01048932]
[1768668458440,0.01048888,95339.0,95336.0,0.01048921]
[1768668461302,0.01064717,95340.0,95336.0,0.06289001]
[1768668462030,0.01048888,95339.0,95335.0,0.01048932]
[1768668462532,0.0104891,95337.0,95334.0,0.01048943]
[1768668462768,0.01048899,95338.0,95335.0,0.01048932]
[1768668462990,0.01064717,95340.0,95336.0,0.01048921]
[1768668463203,0.0001584,95340.0,95337.0,0.06293448]
[1768668464166,0.0001584,95340.0,95337.0,0.0104891]
[1768668466224,0.0001584,95340.0,95337.0,0.06293444]
[1768668467458,0.0001584,95340.0,95337.0,0.0104891]
[1768668468658,0.0001584,95340.0,95337.0,0.01044383]
[1768668468811,0.0001584,95340.0,95337.0,0.0628892]
[1768668469237,0.0001584,95340.0,95338.0,0.05244485]
[1768668469443,0.0001584,95340.0,95336.0,0.01048921]
[1768668469639,0.0001584,95340.0,95337.0,0.0104891]
[1768668470636,0.01064717,95340.0,95337.0,0.0104891]
[1768668471037,0.01064717,95340.0,95337.0,0.06293458]
[1768668471698,0.01064717,95340.0,95337.0,0.0104891]
[1768668472406,0.01064717,95340.0,95337.0,0.01029315]
[1768668472790,0.01048899,95338.0,95334.0,0.01048943]
[1768668472941,0.0104891,95337.0,95334.0,0.01048943]
[1768668473149,0.06293479,95337.0,95334.0,0.01048943]
[1768668473574,0.06293552,95336.0,95331.0,0.60784902]
[1768668473802,0.01048943,95334.0,95328.0,0.03773839]
[1768668474001,0.01048943,95334.0,95325.0,0.01049042]
[1768668474002,0.06293991,95329.0,95326.0,0.12712]
[1768668474222,0.05245103,95327.0,95326.0,0.12712]
[1768668474928,0.01048998,95329.0,95324.0,0.01049053]
[1768668474929,0.062941,95328.0,95324.0,0.01049053]
[1768668475358,0.062941,95328.0,95323.0,0.01049064]
[1768668475359,0.01049031,95326.0,95323.0,0.01049064]
[1768668475979,0.062941,95328.0,95323.0,0.06294376]
[1768668477157,0.06294127,95327.0,95323.0,0.01049064]
[1768668477360,0.0104902,95327.0,95323.0,0.06294384]
[1768668477972,0.01049031,95326.0,95323.0,0.01049064]
[1768668478492,0.01049031,95326.0,95322.0,0.01049075]
[1768668478695,0.01049042,95325.0,95321.0,0.54284165]
[1768668479278,0.01049042,95325.0,95322.0,0.01049075]
[1768668480185,0.01049042,95325.0,95322.0,0.06294447]
[1768668480401,0.01049031,95326.0,95322.0,0.06294447]
[1768668481444,0.01049042,95325.0,95321.0,0.53235079]
[1768668482753,0.05245268,95324.0,95321.0,0.53235079]
[1768668482936,0.01049042,95325.0,95321.0,0.53235079]
[1768668483149,0.01048943,95334.0,95330.0,0.06293911]
[1768668483344,0.01048943,95334.0,95331.0,0.01048976]
[1768668484561,0.01048921,95336.0,95332.0,0.01048965]
[1768668485916,0.06293538,95336.0,95332.0,0.01048965]
[1768668486604,0.01048932,95335.0,95332.0,0.01048965]
[1768668486961,0.06293607,95335.0,95332.0,0.01048965]
[1768668488452,0.01048921,95336.0,95333.0,0.06293725]
[1768668488659,0.0524446,95339.0,95333.0,0.06293725]
[1768668488660,0.01048888,95339.0,95334.0,0.54284022]
[1768668488784,0.05244543,95338.0,95334.0,0.54284022]
[1768668488987,0.05244543,95338.0,95334.0,0.01048943]
[1768668489408,0.05244543,95338.0,95334.0,0.01044416]
[1768668489409,0.0104891,95337.0,95334.0,0.01044416]
[1768668489610,0.0104891,95337.0,95334.0,0.06289131]
[1768668490060,0.0104891,95337.0,95333.0,0.03878366]
[1768668490589,0.0104891,95337.0,95334.0,0.01048943]
[1768668491015,0.0104891,95337.0,95295.0,0.01049372]
[1768668491016,0.01049317,95300.0,95295.0,0.01049372]
[1768668491220,0.12702945,95299.0,95294.0,0.01049384]
[1768668491423,0.12702945,95299.0,95291.0,0.01596613]
[1768668491424,0.12698945,95299.0,95291.0,0.01049417]
[1768668491551,0.12698945,95299.0,95294.0,0.01049384]
[1768668491753,0.01056754,95300.0,95294.0,0.01049384]
[1768668491754,7.437e-05,95300.0,95297.0,0.0104935]
[1768668491959,0.12712,95298.0,95297.0,0.06296104]
[1768668493475,0.12712,95298.0,95297.0,0.0104935]
[1768668493690,0.12712,95298.0,95296.0,0.01049361]
[1768668497580,0.12712,95298.0,95296.0,0.06296153]
[1768668498840,0.12712,95298.0,95295.0,0.01049372]
[1768668499496,0.12712,95298.0,95295.0,0.06296226]
[1768668499714,0.04919251,95298.0,95297.0,0.05246754]
[1768668500136,7.437e-05,95300.0,95299.0,0.05246644]
[1768668500349,7.437e-05,95300.0,95293.0,0.01049395]
[1768668500350,0.01049218,95309.0,95305.0,0.01049262]
[1768668500561,0.01049229,95308.0,95305.0,0.01049262]
[1768668500779,4.725e-05,95309.0,95306.0,0.01049251]
[1768668501209,0.12716,95308.0,95306.0,0.01049251]
[1768668501416,0.12716,95308.0,95305.0,0.01049262]
[1768668501627,0.13765229,95308.0,95304.0,0.01049273]
[1768668502535,0.01049251,95306.0,95302.0,0.01049295]
[1768668502950,0.01049251,95306.0,95299.0,0.01049328]
[1768668502951,0.01049262,95305.0,95301.0,0.01049306]
[1768668504673,0.01049273,95304.0,95300.0,0.01049317]
[1768668507522,0.01049262,95305.0,95301.0,0.01049306]
[1768668509288,0.01049262,95305.0,95302.0,0.01049295]
[1768668509541,0.01049273,95304.0,95300.0,0.01049317]
[1768668509715,0.01049262,95305.0,95301.0,0.01049306]
[1768668509920,0.01049262,95305.0,95301.0,0.0629582]
[1768668511308,0.01049262,95305.0,95302.0,0.01049295]
[1768668513060,0.1376524,95307.0,95303.0,0.01049284]
[1768668514242,0.1376524,95307.0,95303.0,0.06295695]
[1768668514444,0.01053943,95309.0,95305.0,0.01049262]
[1768668514649,4.725e-05,95309.0,95306.0,0.01049251]
[1768668515029,0.0104924,95307.0,95300.0,0.01049317]
[1768668515231,0.05246306,95306.0,95300.0,0.01049317]
[1768668516179,0.0104924,95307.0,95298.0,0.01049339]
[1768668516180,0.01049295,95302.0,95298.0,0.01049339]
[1768668516415,0.0104024,95302.0,95298.0,0.01049339]
[1768668518681,0.0104024,95302.0,95298.0,0.06296036]
[1768668519143,0.0104024,95302.0,95298.0,0.01049339]
[1768668523260,0.06286743,95302.0,95298.0,0.01049339]
[1768668523448,0.05246733,95298.0,95292.0,0.05247007]
[1768668523626,0.05246758,95297.0,95292.0,0.05247007]
[1768668524254,0.01049361,95296.0,95293.0,0.01049395]
[1768668526704,0.06295949,95300.0,95295.0,0.01049372]
[1768668528344,0.01049328,95299.0,95295.0,0.01049372]
[1768668528770,0.01049317,95300.0,95296.0,0.01049361]
[1768668528978,0.01049317,95300.0,95296.0,0.06296117]
[1768668529409,0.06295758,95303.0,95284.0,0.01049494]
[1768668529410,0.01049417,95291.0,95284.0,0.01049494]
[1768668529623,0.01049417,95291.0,95286.0,0.01049472]
[1768668529624,0.51197813,95289.0,95286.0,0.01049472]
[1768668530279,0.00991489,95290.0,95286.0,0.01049472]
[1768668531152,0.5224723,95291.0,95286.0,0.06296829]
[1768668532290,0.5224723,95291.0,95287.0,0.01049461]
[1768668532495,0.01049428,95290.0,95286.0,0.01049472]
[1768668532707,0.06296582,95290.0,95286.0,0.01049472]
[1768668536532,0.01049439,95289.0,95286.0,0.01049472]
[1768668536758,0.01040383,95289.0,95286.0,0.01049472]
[1768668539464,0.0104945,95288.0,95285.0,0.01049483]
[1768668539677,0.48966371,95288.0,95283.0,0.01049505]
[1768668539869,0.01040383,95289.0,95285.0,0.01049483]
[1768668540143,0.01049428,95290.0,95285.0,0.06296896]
[1768668540786,0.01049428,95290.0,95280.0,0.01049538]
[1768668540787,0.47916921,95278.0,95261.0,0.03168794]
[1768668541038,0.12716,95295.0,95255.0,0.01049813]
[1768668541039,0.01049769,95259.0,95255.0,0.01049813]
[1768668541293,0.01049769,95259.0,95250.0,0.0001584]
[1768668541294,0.01049791,95257.0,95253.0,0.01049835]
[1768668541504,0.01049791,95257.0,95250.0,0.05265177]
[1768668541505,0.01049802,95256.0,95251.0,0.01049857]
[1768668541929,0.01049791,95257.0,95253.0,0.01049835]
[1768668542114,0.1376578,95258.0,95253.0,0.01049835]
[1768668542115,0.12716,95258.0,95254.0,0.01049824]
[1768668542816,0.12716,95258.0,95255.0,0.01049813]
[1768668544033,0.12716,95258.0,95255.0,0.06298862]
[1768668544536,0.12716,95258.0,95247.0,0.01049901]
[1768668544537,0.47916921,95256.0,95247.0,0.01049901]
[1768668544769,0.12716,95255.0,95253.0,0.01049835]
[1768668544998,0.12716,95255.0,95254.0,0.01049824]
[1768668545477,0.1272,95255.0,95254.0,0.01049824]
[1768668545704,0.01049758,95260.0,95257.0,0.01049791]
[1768668546383,0.1272,95259.0,95257.0,0.01049791]
[1768668546584,0.1272,95259.0,95255.0,0.06298872]
[1768668546794,0.01049769,95259.0,95255.0,0.01049813]
[1768668547008,0.13769769,95259.0,95255.0,0.01049813]
[1768668548792,0.0104978,95258.0,95255.0,0.01049813]
[1768668548996,0.01049747,95261.0,95257.0,0.01049791]
[1768668549195,0.01049769,95259.0,95255.0,0.01049813]
[1768668550207,0.01049769,95259.0,95252.0,0.01049846]
[1768668550393,0.06298664,95259.0,95253.0,0.0524913]
[1768668550624,0.05248903,95258.0,95253.0,0.0524913]